[Event "4NCL 2022-2023"]
[Site "Daventry"]
[Date "2023.01.15"]
[Round "4.23"]
[White "Hunt, Harriet V"]
[Black "Kueh, Audrey"]
[Result "1-0"]
[ECO "B12"]
[WhiteElo "2348"]
[BlackElo "2123"]
[Annotator "TA"]
[PlyCount "57"]
[EventDate "2022.10.20"]
[EventType "team-tourn"]
[EventCountry "ENG"]
[SourceTitle "playchess.com"]
[Source "ChessBase"]
[SourceQuality "1"]
[TimeControl "40/6000+30:2400+30"]

{[%evp 15,57,26,36,36,45,37,43,42,61,21,14,-31,-34,-12,-2,-96,-59,-63,-48,-47,-64,-45,0,0,0,0,3,8,77,102,111,110,387,373,841,836,1342,1248,1229,915,1258,1219,29965,3544]} 1. e4 {[%emt 0:00:09]} c6 {[%emt 0:00:07]} 2. d4 {[%emt 0:00:12]} d5 {[%emt 0:00:03]} 3. e5 {[%emt 0:00:13]} Bf5 {[%emt 0:00:38]} 4. Nf3 {[%emt 0:00:10]} e6 {[%emt 0:00:06]} 5. Be2 {[%emt 0:00:12]} c5 {[%emt 0:00:06]} 6. Be3 {[%emt 0:00:17]} cxd4 {[%emt 0:00:05]} 7. Nxd4 {[%emt 0:00:13]} Ne7 {[%emt 0:00:04]} 8. O-O $1 {[%emt 0:00:49][%mdl 4] outshines the older 8.Nd2.} Nbc6 {[%emt 0:01:57]} 9. Bb5 {[%emt 0:00:44] B12: Caro-Kann: Advance Variation.} a6 {[%emt 0:12:44]} 10. Bxc6+ {[%emt 0:00:18]} bxc6 {[%emt 0:00:01] [#] Black is weak on the dark squares} 11. c4 $1 {[%emt 0:05:37] White is slightly better.} c5 {[%emt 0:08:28]} (11... Qd7 12. Nc3) 12. Qa4+ {[%emt 0:10:30]} Qd7 {[%emt 0:00:26] [#]} 13. Nb5 $1 {[%emt 0:12:52]} Nc6 {[%emt 0:02:10] [#]} (13... axb5 $2 14. Qxa8+ Qd8 15. Qxd8+ Kxd8 16. cxb5 $18 (16. Bxc5 bxc4 17. b3 Bd3 $16)) 14. cxd5 $146 {[%emt 0:02:30]} ({Predecessor:} 14. Rd1 d4 15. b4 Rc8 16. bxc5 axb5 17. cxb5 Bxc5 18. bxc6 Qxc6 19. Qxc6+ Rxc6 20. Bf4 {½-½ Kaliszuk,K (1967)-Jedrusik,A (1956) Lazy Baltic Pearl op-A 17th 2021 (9)}) 14... exd5 {[%emt 0:00:44][%cal Be6d5,Bd5d4][%mdl 32]} (14... axb5 $2 15. Qxa8+ Nd8 16. Nc3 $18) 15. Rd1 {[%emt 0:28:48] Dodges Bd3} (15. N1a3 $11 {keeps the balance.}) 15... d4 {[%emt 0:10:53][%cal Oa8b8] And now ...Rb8! would win.} (15... axb5 $2 16. Qxa8+ Qc8 17. Qxc8+ Bxc8 18. Rxd5 $18) 16. Bf4 $1 {[%emt 0:03:02][%cal Oe5e6]} Qb7 {[%emt 0:16:33]} ({Much less strong is} 16... axb5 17. Qxa8+ Qc8 18. Qxc8+ Bxc8 19. Nd2 $16) 17. Nd6+ {[%emt 0:02:51]} Bxd6 {[%emt 0:00:49]} 18. exd6 {[%emt 0:00:01]} Qb5 {[%emt 0:05:57]} (18... Qxb2 {gets mated.} 19. Qxc6+ Bd7 20. Qxa8+) 19. Re1+ {[%emt 0:08:29]} Kd7 {[%emt 0:01:10]} 20. Qa3 {[%emt 0:02:00] Nd2 is the strong threat.} Rhe8 {[%emt 0:06:05][%cal Re8e1]} 21. Nd2 {[%emt 0:01:18][%cal Bb1d2,Bd2c4,Bc4b6][%mdl 32]} Nb4 {[%emt 0:03:48]} (21... Rxe1+ $11 {remains equal.} 22. Rxe1 Re8 23. Rxe8 Kxe8) 22. Qf3 $16 {[%emt 0:05:21][%cal Od2c4] Threatens to win with Nc4!} ({Reject} 22. Qb3 Re6 $11) 22... Qc6 {[%emt 0:15:03] White must now prevent ...Qxf3.} 23. Qb3 {[%emt 0:05:41] The board is on fire.} Qd5 {[%emt 0:00:43][%mdl 8192] [#] A mistake that costs the game.} (23... Nd5 $16) 24. Nc4 $1 $18 {[%emt 0:00:51]} Kd8 $2 {[%emt 0:07:38]} (24... Rxe1+ 25. Rxe1 Re8 26. Nb6+ Kc6 27. Rxe8 (27. Nxd5 $2 Rxe1#) 27... Qxb3 28. axb3 Kxb6) 25. Qa4 {[%emt 0:02:31][%csl Ga4][%cal Re1e8]} Re4 {[%emt 0:06:06]} 26. Qa5+ {[%emt 0:02:17]} Ke8 {[%emt 0:00:08]} 27. Nb6 {[%emt 0:00:52]} Qe6 {[%emt 0:00:26]} 28. d7+ {[%emt 0:00:33]} Ke7 {[%emt 0:00:02]} 29. Qxc5+ {[%emt 0:00:18] Excellently played by Hunt!   Weighted Error Value: White=0.16 (very precise) /Black=0.69} 1-0

[Event "4NCL 2022-2023"]
[Site "Daventry"]
[Date "2023.01.15"]
[Round "4.24"]
[White "Bremner, Adam"]
[Black "Kalaiyalahan, Akshaya"]
[Result "1-0"]
[ECO "D24"]
[WhiteElo "2155"]
[BlackElo "2155"]
[Annotator "TA"]
[PlyCount "81"]
[EventDate "2022.10.20"]
[EventType "team-tourn"]
[EventCountry "ENG"]
[SourceTitle "playchess.com"]
[Source "ChessBase"]
[SourceQuality "1"]
[TimeControl "40/6000+30:2400+30"]

{[%evp 9,81,12,43,42,44,41,43,37,42,29,55,47,45,50,56,46,68,72,71,65,63,68,99,110,106,31,54,25,60,62,77,72,67,7,45,0,0,4,75,77,102,12,14,0,51,50,42,0,218,233,231,221,29983,219,221,230,208,196,175,102,114,95,461,481,1712,1569,5866,2841,29989,29990,29990,29987,29991,29992]} 1. d4 {[%emt 0:00:02]} d5 {[%emt 0:01:34]} 2. c4 {[%emt 0:00:13]} e6 {[%emt 0:00:16]} 3. Nf3 {[%emt 0:00:59]} Nf6 {[%emt 0:00:07]} 4. Nc3 {[%emt 0:00:12]} dxc4 {[%emt 0:00:06]} 5. e4 {[%emt 0:00:32][%cal Be2e4,Be4e5][%mdl 32]} b5 {[%emt 0:00:08]} 6. e5 {[%emt 0:01:35] D24: Queen's Gambit Accepted: 3 Nf3 Nf6 4 Nc3.} Nd5 {[%emt 0:00:12]} 7. Nxb5 {[%emt 0:04:07]} Nb6 {[%emt 0:00:45]} 8. Be3 {[%emt 0:05:36] White is slightly better.} Bb4+ {[%emt 0:06:56]} 9. Nc3 {[%emt 0:00:40]} O-O {[%emt 0:01:58]} 10. Be2 {[%emt 0:02:06]} Bb7 {[%emt 0:14:28][%cal Oc7c5]} 11. O-O {[%emt 0:00:20] [#]} Bxc3 $146 {[%emt 0:03:13]} ({Predecessor:} 11... Nc6 12. Qc2 h6 13. a3 Bxc3 14. bxc3 Na5 15. Rab1 Qd5 16. Ne1 Qd7 17. f4 f5 18. exf6 Rxf6 {0-1 Martirosyan,H (2632)-Erigaisi,A (2567) Junior Speed Final blitz 2021 (2.56)}) 12. bxc3 {[%emt 0:00:02]} Bd5 {[%emt 0:01:57]} 13. Qc2 {[%emt 0:04:20]} h6 {[%emt 0:00:44] Wards off Ng5} 14. Nd2 {[%emt 0:04:11]} Nc6 {[%emt 0:00:38][%cal Bb8c6,Bc6e7,Be7f5][%mdl 32]} 15. Ne4 {[%emt 0:04:19]} Bxe4 {[%emt 0:07:03]} 16. Qxe4 {[%emt 0:00:20]} Ne7 {[%emt 0:00:21]} 17. Rac1 {[%emt 0:08:01] White has more active pieces. The black rooks are badly placed.} (17. a4 $16) 17... Rb8 {[%emt 0:01:56]} 18. Bd1 {[%emt 0:12:38]} Qd5 {[%emt 0:05:31]} 19. Qg4 {[%emt 0:02:06]} Nf5 {[%emt 0:01:06][%cal Oc7c5]} 20. Bc2 {[%emt 0:00:18]} Qd7 {[%emt 0:01:07]} 21. Qe2 {[%emt 0:04:45]} (21. Qe4 $14 Qd5 22. Qf4) 21... Rfc8 {[%emt 0:03:42]} 22. g4 {[%emt 0:06:50]} Nxe3 {[%emt 0:02:18]} 23. fxe3 {[%emt 0:02:30][%cal Og4g5] Threatens to win with g5!} Qe7 {[%emt 0:02:45] Wards off g5} (23... Nd5 $11 {remains equal.}) 24. Rf3 {[%emt 0:02:54][%cal Og4g5]} Qg5 {[%emt 0:04:51]} 25. Kh1 {[%emt 0:03:31]} (25. Qf2 $1 $16) 25... Nd5 {[%emt 0:09:04]} 26. Rcf1 {[%emt 0:04:08]} Rf8 {[%emt 0:07:17]} ({Black should play} 26... c5 $1 $11) 27. Qf2 $1 $14 {[%emt 0:01:30][%cal Rf3f7]} (27. Qxc4 Nxe3 28. Qd3 Nxc2 29. Qxc2 c5 $15) 27... Qe7 {[%emt 0:01:29]} 28. Qe2 {[%emt 0:12:06]} (28. e4 {simplifies} Nb6 29. h4 c6 30. Kg1) 28... Qa3 $2 {[%emt 0:03:39]} (28... Qg5 $1 $11 {and Black is okay.}) 29. g5 $1 $18 {[%emt 0:06:06]} ({Not} 29. Qxc4 Qxc3 30. Qe2 Nb4 $16) 29... hxg5 {[%emt 0:06:22] Hoping for ...Rb2.} (29... Nxc3 30. Qg2 g6 31. gxh6 $18) 30. Rg3 $1 {[%emt 0:00:28][%cal Oc2h7] Intending Bh7+! and mate.} Rb2 $2 {[%emt 0:02:07]} (30... Qxa2 $2 31. Bh7+ Kxh7 32. Qxa2 $18) (30... Qxc3 $2 31. Rxg5 (31. e4 Ne3 $16) 31... Ne7 32. Rfg1 $18) (30... f5 $18) 31. Rxg5 $2 {[%emt 0:00:40]} (31. Bh7+ $1 {mates} Kxh7 32. Qh5+ Kg8 33. Qxg5 Rxh2+ {[%mdl 64] Decoy} 34. Kxh2 Qb2+ 35. Kh1 g6 36. Qh6) 31... f5 {[%emt 0:03:39]} (31... Qxc3 {is a self mate.} 32. Rxg7+ Kxg7 33. Qg2+ Kh8 34. Qh3+ Kg8 35. Qh7#) 32. exf6 {[%emt 0:02:47]} Nxf6 {[%emt 0:01:38]} (32... Rxf6 $2 33. Rfg1 Qe7 34. Qg2 $18) 33. Qg2 $40 {[%emt 0:02:16][%mdl 128] Black is in trouble.} Qe7 {[%emt 0:04:18] [#]} 34. Rg1 {[%emt 0:03:20]} (34. Rg3 $1 $18) 34... Rf7 $16 {[%emt 0:00:14]} 35. e4 {[%emt 0:01:16][%cal Be3e4,Be4e5][%mdl 32] Strongly threatening e5.} Kf8 $2 {[%emt 0:01:02][%mdl 8192] [#] Loses the game.} (35... Nh7 $16 36. Rg6 Qd7) 36. e5 $1 $18 {[%emt 0:01:32]} Nd5 {[%emt 0:04:44]} (36... c6 $142 37. exf6 Qxf6) 37. Rh5 {[%emt 0:00:45][%cal Rh5h8]} Qa3 {[%emt 0:00:55] [#]} 38. Qg5 $1 {[%emt 0:01:01][%cal Rh5h8]} Nf6 {[%emt 0:01:57]} (38... Ke8 39. Rh8+) 39. exf6 {[%emt 0:01:26] White mates.} gxf6 {[%emt 0:00:03]} 40. Qg8+ {[%emt 0:01:01]} Ke7 {[%emt 0:00:05] [#]} 41. Rh8 $1 {[%emt 0:40:41] Weighted Error Value: White=0.30/Black=0.63} 1-0

[Event "4NCL 2022-2023"]
[Site "Daventry"]
[Date "2023.01.15"]
[Round "4.25"]
[White "Murphy, Conor E"]
[Black "Jones, Gawain C B"]
[Result "1-0"]
[ECO "C55"]
[WhiteElo "2429"]
[BlackElo "2623"]
[Annotator "TA"]
[PlyCount "159"]
[EventDate "2022.10.20"]
[EventType "team-tourn"]
[EventCountry "ENG"]
[SourceTitle "playchess.com"]
[Source "ChessBase"]
[SourceQuality "1"]
[TimeControl "40/6000+30:2400+30"]

{[%evp 10,159,40,33,35,29,30,24,52,55,60,56,63,64,91,54,128,132,139,133,152,144,126,89,120,108,121,119,161,160,156,116,181,119,120,110,118,122,114,113,152,143,152,139,148,148,143,144,141,108,115,105,117,114,135,137,129,111,111,92,85,84,139,145,156,133,137,137,137,0,64,0,137,137,137,138,138,139,160,153,308,297,289,281,258,239,469,462,658,634,529,649,628,539,635,610,575,579,1608,709,774,745,772,633,4694,2995,6099,4104,29968,29970,29977,29971,29969,29970,5477,2681,29975,29976,29976,29975,29975,29976,29977,29977,29977,29978,29978,29979,29977,0,29976,29977,29976,29977,29981,29982,29984,29985,29985,29986,29986,29984,29984,29981,29980,29981,29983,29984,29984,29985,29985,29986]} 1. e4 {[%emt 0:00:05]} e5 {[%emt 0:05:02]} 2. Nf3 {[%emt 0:00:19]} Nc6 {[%emt 0:00:14]} 3. Bc4 {[%emt 0:00:23]} Nf6 {[%emt 0:00:20]} 4. d3 {[%emt 0:00:39]} h6 {[%emt 0:00:06]} 5. c3 {[%emt 0:00:45]} d6 {[%emt 0:00:09]} 6. O-O {[%emt 0:00:30]} g5 {[%emt 0:00:28] outshines the older 6...g6. C55: Two Knights: 4 d3, 4 d4 exd4 5 e5 and Max Lange Attack.} 7. a4 {[%emt 0:00:38][%cal Ba2a4,Ba4a5,Ba5a6][%mdl 32]} Bg7 {[%emt 0:00:51]} 8. a5 {[%emt 0:00:15] [#]} Qe7 $146 {[%emt 0:11:31] White has an edge.} ({Predecessor:} 8... O-O 9. Be3 d5 10. exd5 Nxd5 11. Bc5 Re8 12. Re1 g4 13. Nfd2 b6 14. axb6 cxb6 {1-0 Sindarov,J (2544)-Gareyev,T (2606) RBI op Qualifier 3 blitz 2020 (7)}) 9. a6 {[%emt 0:11:16]} b6 {[%emt 0:01:41]} 10. d4 {[%emt 0:15:22][%cal Bd3d4,Bd4d5][%mdl 32]} Bd7 {[%emt 0:03:12]} (10... Nxe4 $2 11. Bd5 Bd7 12. Bxe4 $18) 11. d5 {[%emt 0:02:59]} Nd8 {[%emt 0:00:48]} (11... Na5 12. Be2 $18) 12. Re1 {[%emt 0:07:48]} Nh7 {[%emt 0:08:25]} (12... c6 $14) 13. Na3 $16 {[%emt 0:04:11][%cal Bb1a3,Ba3b5,Bb5c3,Bc3e4,Be4g3][%mdl 32]} O-O {[%emt 0:05:35]} 14. Nb5 {[%emt 0:04:48]} f5 {[%emt 0:09:37]} 15. exf5 $1 {[%emt 0:04:16] White is much more active.} (15. Nxc7 $2 Rc8 16. Nb5 Rxc4 $17) 15... Bxf5 {[%emt 0:03:43]} 16. Bd3 {[%emt 0:11:49]} Qd7 {[%emt 0:22:17][%cal Oe5e4]} 17. Bxf5 {[%emt 0:04:02]} Rxf5 {[%emt 0:00:06]} 18. c4 {[%emt 0:07:02]} Nf6 {[%emt 0:00:51]} 19. Nc3 {[%emt 0:02:28]} Nf7 {[%emt 0:03:32]} 20. Qa4 {[%emt 0:04:26]} Qc8 {[%emt 0:02:49]} (20... g4 $16) 21. Nd2 {[%emt 0:02:29]} (21. Ra3 $1 $18) 21... e4 {[%emt 0:02:35]} 22. Ndxe4 {[%emt 0:02:07]} Nxe4 {[%emt 0:00:07]} 23. Nxe4 {[%emt 0:00:56]} Ne5 {[%emt 0:00:29]} 24. Ra3 {[%emt 0:04:17][%cal Ba1a3,Ba3e3,Be3e2,Be2d2,Bd2d4][%mdl 32]} Qf8 {[%emt 0:00:20]} 25. Qc2 {[%emt 0:01:08]} Qf7 {[%emt 0:02:30]} 26. Ng3 {[%emt 0:03:02]} Rf6 {[%emt 0:00:53]} 27. Rae3 {[%emt 0:03:51]} Rf8 {[%emt 0:01:21][%cal Rf6f2]} 28. R3e2 {[%emt 0:00:50]} Qg6 {[%emt 0:10:55]} 29. Be3 {[%emt 0:06:50]} Nd3 {[%emt 0:02:19]} 30. Rd1 {[%emt 0:00:54]} Nf4 {[%emt 0:00:20]} 31. Red2 {[%emt 0:01:07]} Qe8 {[%emt 0:00:26]} 32. b3 {[%emt 0:00:26]} R6f7 {[%emt 0:01:13]} 33. Ne2 {[%emt 0:00:44]} Re7 {[%emt 0:03:48]} 34. Nd4 {[%emt 0:01:41] Hoping for Nc6.} Bxd4 {[%emt 0:00:32]} 35. Rxd4 {[%emt 0:00:19]} Qh5 {[%emt 0:00:48]} (35... Rxe3 $142 36. fxe3 Qxe3+ 37. Kh1 Re8 38. Rxf4 {[%mdl 64] Remove Defender} Qxf4) 36. Bxf4 {[%emt 0:01:52]} Rxf4 {[%emt 0:00:05]} 37. f3 {[%emt 0:01:02]} Qe8 {[%emt 0:02:18]} 38. Kf2 $1 {[%emt 0:00:16]} Qh5 {[%emt 0:01:29] ...Qh4+ is the strong threat.} 39. Kg1 {[%emt 0:00:26]} (39. Rxf4 $16 gxf4 40. Kg1) 39... Qe8 $1 $14 {[%emt 0:00:22]} 40. Kf2 {[%emt 0:01:34] Wards off Re2+} ({White should play} 40. R4d3 $1 $14) 40... Qh5 $1 $16 {[%emt 0:00:07] White must now prevent ...Qh4+.} 41. Rxf4 {[%emt 0:07:08] White leaves nothing to chance now.} gxf4 {[%emt 0:00:00][%mdl 4096] Endgame KQR-KQR} 42. h3 {[%emt 0:02:19]} Qh4+ {[%emt 0:00:00]} 43. Kf1 $1 {[%emt 0:00:55]} Qg3 {[%emt 0:00:00] [#]} 44. Qd2 $1 {[%emt 0:07:55] aiming for Re1.} Re3 {[%emt 0:04:00]} (44... Qh2 $16 45. Re1 Rg7) 45. Re1 $18 {[%emt 0:02:18]} Rxb3 {[%emt 0:01:51]} 46. Qd4 {[%emt 0:03:29]} Qg6 {[%emt 0:16:30]} 47. Qxf4 {[%emt 0:02:54]} Rb2 $2 {[%emt 0:04:06]} (47... Rb1 48. Qg4 Qxg4 49. hxg4 Rb4 50. Re8+ Kf7) 48. g4 {[%emt 0:04:22]} (48. Qg4 Qxg4 49. fxg4 (49. hxg4 Kf8 $14) 49... Kf7 $16) 48... Qd3+ {[%emt 0:03:39]} (48... Qc2 {leads to mate.} 49. Re8+ (49. Qxh6 $2 Qg2#) 49... Kg7 50. Qf8+ Kg6 51. Qg8+ Kf6 52. Re6#) (48... h5 $142 49. Qe3 Rh2 50. Qe8+ (50. Qe6+ Qxe6 51. Rxe6 Rxh3 $11) 50... Qxe8 51. Rxe8+ Kg7 52. Re7+ Kf6 53. Rxc7 Rxh3 54. gxh5 (54. Rxa7 Rxf3+ 55. Kg1 hxg4 $14) 54... Rxh5 55. Rxa7 Ke5) 49. Kg1 {[%emt 0:00:06] White wants to mate with Re8+.} Rb1 {[%emt 0:00:10]} 50. Rxb1 {[%emt 0:01:52]} Qxb1+ {[%emt 0:00:07] KQ-KQ} 51. Kf2 {[%emt 0:01:32]} Qa2+ {[%emt 0:00:10] [#]} 52. Kg3 $1 {[%emt 0:00:49]} Qxa6 {[%emt 0:00:08]} 53. Qxh6 {[%emt 0:07:04]} Qxc4 {[%emt 0:00:40]} 54. Qg6+ {[%emt 0:00:11]} (54. Qe6+ $142 Kg7 55. h4) 54... Kf8 {[%emt 0:00:37]} 55. Qf6+ {[%emt 0:00:04]} Kg8 {[%emt 0:01:23]} 56. Qe6+ {[%emt 0:01:45]} Kf8 {[%emt 0:02:15]} 57. g5 {[%emt 0:00:30] g6 would kill now.} Qc1 {[%emt 0:02:10]} 58. Kg4 {[%emt 0:00:45] Intending g6 and mate.} Qg1+ {[%emt 0:03:01]} 59. Kh5 {[%emt 0:00:54]} Qg3 {[%emt 0:00:24]} 60. Qc8+ {[%emt 0:01:14]} Ke7 {[%emt 0:00:07]} 61. Qxc7+ {[%emt 0:00:10]} Ke8 {[%emt 0:00:05]} 62. Qb8+ {[%emt 0:00:31]} Ke7 {[%emt 0:00:44]} 63. Qxa7+ {[%emt 0:00:08]} Ke8 {[%emt 0:00:03]} 64. Qa8+ {[%emt 0:00:21]} ({Stronger than} 64. Qxb6 Qxf3+ 65. Kg6 Qf7+ 66. Kh6 Qf8+ 67. Kh5 Qf3+ 68. Kh4 Qf4+ 69. Kh5 Qf3+ $11) 64... Ke7 {[%emt 0:00:07]} 65. Qb7+ {[%emt 0:00:04]} Ke8 {[%emt 0:00:06]} 66. Qc8+ {[%emt 0:00:08]} ({Weaker is} 66. Qxb6 Qxf3+ 67. Kg6 Qf7+ 68. Kh6 Qf8+ 69. Kh5 Qf3+ 70. Kh4 Qf4+ 71. Kh5 Qf3+ $11) 66... Ke7 {[%emt 0:00:05]} 67. Kg6 {[%emt 0:01:50]} b5 {[%emt 0:02:40]} 68. Qc7+ {[%emt 0:00:19]} Ke8 {[%emt 0:00:04]} 69. Qc8+ {[%emt 0:00:04]} Ke7 {[%emt 0:00:03]} 70. Qb7+ {[%emt 0:00:05] White mates.} Kd8 {[%emt 0:00:05]} 71. Qxb5 {[%emt 0:00:25]} Qxh3 {[%emt 0:02:32]} 72. Qb6+ {[%emt 0:00:34]} Kd7 {[%emt 0:00:33]} 73. Qc6+ {[%emt 0:00:08]} Ke7 {[%emt 0:00:05]} 74. Qc7+ {[%emt 0:00:04]} Ke8 {[%emt 0:00:04]} 75. Qf7+ {[%emt 0:00:06]} Kd8 {[%emt 0:00:06]} 76. Qf6+ {[%emt 0:00:06]} Kc7 {[%emt 0:00:46]} 77. Qe7+ {[%emt 0:00:13][%mdl 64] Deflection} Kb8 {[%emt 0:00:42]} 78. Qxd6+ {[%emt 0:00:07]} Ka8 {[%emt 0:00:03]} 79. Qf8+ {[%emt 0:00:25]} Ka7 {[%emt 0:00:13]} 80. Qf7+ {[%emt 0:00:05] Weighted Error Value: White=0.12 (very precise) /Black=0.39} 1-0